[Event "Titled Tuesday Blitz May 4 2021"]
[White "Gusarov, Grigory"]
[Black "Sargissyan, Sargis"]
[WhiteFideId "24102172"]
[BlackFideId "13303210"]
[WhiteElo "2285"]
[BlackElo "2174"]
[Result "1-0"]
[Round "01"]
[TimeControl "180+1"]
[Date "2021.05.04"]
[WhiteClock "0:01:23"]
[BlackClock "0:00:13"]

1. e4 {[%clk 0:03:00]}  c5 {[%clk 0:02:59]} 2. Nf3 {[%clk 0:03:00]}  d6 {[%clk 0:02:59]} 3. Bb5+ {[%clk 0:03:00]}  Nd7 {[%clk 0:02:58]} 4. O-O {[%clk 0:02:59]}  a6 {[%clk 0:02:58]} 5. Bxd7+ {[%clk 0:03:00]}  Bxd7 {[%clk 0:02:59]} 6. d4 {[%clk 0:03:00]}  cxd4 {[%clk 0:02:58]} 7. Qxd4 {[%clk 0:03:01]}  Nf6 {[%clk 0:02:51]} 8. e5 {[%clk 0:03:00]}  dxe5 {[%clk 0:02:37]} 9. Nxe5 {[%clk 0:02:59]}  Bb5 {[%clk 0:02:18]} 10. Qxd8+ {[%clk 0:02:58]}  Rxd8 {[%clk 0:02:19]} 11. c4 {[%clk 0:02:58]}  Bd7 {[%clk 0:02:18]} 12. Nxd7 {[%clk 0:02:57]}  Nxd7 {[%clk 0:02:16]} 13. Nc3 {[%clk 0:02:58]}  e6 {[%clk 0:02:15]} 14. Bf4 {[%clk 0:02:54]}  Be7 {[%clk 0:02:01]} 15. Rfd1 {[%clk 0:02:49]}  Nf6 {[%clk 0:01:51]} 16. Rxd8+ {[%clk 0:02:45]}  Kxd8 {[%clk 0:01:50]} 17. Rd1+ {[%clk 0:02:41]}  Kc8 {[%clk 0:01:49]} 18. f3 {[%clk 0:02:38]}  Rd8 {[%clk 0:01:41]} 19. Rxd8+ {[%clk 0:02:38]}  Kxd8 {[%clk 0:01:42]} 20. Kf2 {[%clk 0:02:39]}  Bc5+ {[%clk 0:01:39]} 21. Ke2 {[%clk 0:02:39]}  Kd7 {[%clk 0:01:36]} 22. Kd3 {[%clk 0:02:38]}  Bd6 {[%clk 0:01:18]} 23. Bxd6 {[%clk 0:02:38]}  Kxd6 {[%clk 0:01:19]} 24. b4 {[%clk 0:02:38]}  Ke5 {[%clk 0:01:15]} 25. g3 {[%clk 0:02:34]}  Nd7 {[%clk 0:01:01]} 26. Ne4 {[%clk 0:02:23]}  b6 {[%clk 0:00:33]} 27. h3 {[%clk 0:01:53]}  h6 {[%clk 0:00:29]} 28. f4+ {[%clk 0:01:38]}  Kf5 {[%clk 0:00:27]} 29. Nd6+ {[%clk 0:01:38]}  Kg6 {[%clk 0:00:24]} 30. Kd4 {[%clk 0:01:35]}  f6 {[%clk 0:00:25]} 31. c5 {[%clk 0:01:35]}  bxc5+ {[%clk 0:00:21]} 32. bxc5 {[%clk 0:01:36]}  Nb8 {[%clk 0:00:21]} 33. Ke4 {[%clk 0:01:29]}  Nc6 {[%clk 0:00:21]} 34. g4 {[%clk 0:01:28]}  h5 {[%clk 0:00:20]} 35. f5+ {[%clk 0:01:26]}  Kh6 {[%clk 0:00:16]} 36. fxe6 {[%clk 0:01:24]}  Kg6 {[%clk 0:00:16]} 37. Nf5 {[%clk 0:01:24]}  hxg4 {[%clk 0:00:16]} 38. hxg4 {[%clk 0:01:24]}  Kg5 {[%clk 0:00:13]} 39. e7 {[%clk 0:01:23]}  Nxe7 {[%clk 0:00:13]} 40. Nxe7 {[%clk 0:01:23]}  Kxg4 {[%clk 0:00:14]} 41. c6 {[%clk 0:01:23]}  g6 {[%clk 0:00:13]} 42. c7 {[%clk 0:01:23]}  f5+ {[%clk 0:00:14]} 43. Ke5 {[%clk 0:01:23]}  f4 {[%clk 0:00:13]} 44. c8=Q+ {[%clk 0:01:23]} 1-0


[Site "https://www.chess.com"]

[Event "Titled Tuesday Blitz May 4 2021"]
[White "Guz, Ari"]
[Black "Winslow, Elliott"]
[WhiteFideId "2825759"]
[BlackFideId "2002523"]
[WhiteElo "1847"]
[BlackElo "2250"]
[Result "0-1"]
[Round "01"]
[TimeControl "180+1"]
[Date "2021.05.04"]
[WhiteClock "0:01:09"]
[BlackClock "0:01:19"]

1. d4 {[%clk 0:02:58]}  Nf6 {[%clk 0:02:59]} 2. g3 {[%clk 0:02:58]}  g6 {[%clk 0:02:57]} 3. Bg2 {[%clk 0:02:59]}  Bg7 {[%clk 0:02:58]} 4. c4 {[%clk 0:02:59]}  O-O {[%clk 0:02:58]} 5. Nc3 {[%clk 0:02:59]}  d6 {[%clk 0:02:59]} 6. e4 {[%clk 0:02:59]}  e5 {[%clk 0:02:55]} 7. Nge2 {[%clk 0:02:59]}  c6 {[%clk 0:02:51]} 8. O-O {[%clk 0:02:58]}  Nbd7 {[%clk 0:02:42]} 9. h3 {[%clk 0:02:57]}  Qb6 {[%clk 0:02:33]} 10. d5 {[%clk 0:02:50]}  cxd5 {[%clk 0:02:32]} 11. cxd5 {[%clk 0:02:48]}  Nc5 {[%clk 0:02:28]} 12. Qc2 {[%clk 0:02:45]}  Bd7 {[%clk 0:02:26]} 13. Be3 {[%clk 0:02:45]}  Rfc8 {[%clk 0:02:21]} 14. Rab1 {[%clk 0:02:39]}  a5 {[%clk 0:02:11]} 15. Kh2 {[%clk 0:02:32]}  Qa6 {[%clk 0:02:05]} 16. f4 {[%clk 0:02:26]}  exf4 {[%clk 0:02:02]} 17. gxf4 {[%clk 0:02:26]}  b5 {[%clk 0:01:54]} 18. e5 {[%clk 0:02:24]}  Bf5 {[%clk 0:01:46]} 19. Qd2 {[%clk 0:02:19]}  dxe5 {[%clk 0:01:42]} 20. fxe5 {[%clk 0:02:19]}  Nfe4 {[%clk 0:01:42]} 21. Nxe4 {[%clk 0:02:13]}  Nxe4 {[%clk 0:01:40]} 22. Qd4 {[%clk 0:02:13]}  Rc4 {[%clk 0:01:38]} 23. Qd1 {[%clk 0:02:06]}  Bxe5+ {[%clk 0:01:37]} 24. Kg1 {[%clk 0:02:05]}  Rd8 {[%clk 0:01:35]} 25. b3 {[%clk 0:01:57]}  Rcc8 {[%clk 0:01:33]} 26. Qe1 {[%clk 0:01:45]}  Qd6 {[%clk 0:01:32]} 27. Rd1 {[%clk 0:01:41]}  a4 {[%clk 0:01:28]} 28. Bf4 {[%clk 0:01:37]}  Bxf4 {[%clk 0:01:25]} 29. Nxf4 {[%clk 0:01:37]}  Re8 {[%clk 0:01:25]} 30. Qh4 {[%clk 0:01:30]}  g5 {[%clk 0:01:21]} 31. Qh5 {[%clk 0:01:26]}  h6 {[%clk 0:01:21]} 32. h4 {[%clk 0:01:21]}  Ng3 {[%clk 0:01:20]} 33. Qf3 {[%clk 0:01:14]}  gxf4 {[%clk 0:01:20]} 34. Qxf4 {[%clk 0:01:09]}  Ne2+ {[%clk 0:01:19]} 0-1


[Site "https://www.chess.com"]

[Event "Titled Tuesday Blitz May 4 2021"]
[White "Iniyan, P"]
[Black "Shuvalov, Evgenij"]
[WhiteFideId "25002767"]
[BlackFideId "4187237"]
[WhiteElo "2400"]
[BlackElo "2163"]
[Result "1-0"]
[Round "01"]
[TimeControl "180+1"]
[Date "2021.05.04"]
[WhiteClock "0:00:18"]
[BlackClock "0:00:02"]

1. Nf3 {[%clk 0:02:18]}  d5 {[%clk 0:02:57]} 2. d4 {[%clk 0:02:18]}  Nf6 {[%clk 0:02:57]} 3. c4 {[%clk 0:02:18]}  c6 {[%clk 0:02:57]} 4. Nc3 {[%clk 0:02:18]}  dxc4 {[%clk 0:02:55]} 5. a4 {[%clk 0:02:18]}  Bf5 {[%clk 0:02:54]} 6. e3 {[%clk 0:02:16]}  e6 {[%clk 0:02:52]} 7. Bxc4 {[%clk 0:02:16]}  Bb4 {[%clk 0:02:52]} 8. O-O {[%clk 0:02:17]}  Nbd7 {[%clk 0:02:51]} 9. Qe2 {[%clk 0:02:16]}  O-O {[%clk 0:02:51]} 10. e4 {[%clk 0:02:16]}  Bg6 {[%clk 0:02:50]} 11. Bd3 {[%clk 0:02:16]}  Bh5 {[%clk 0:02:48]} 12. e5 {[%clk 0:02:16]}  Nd5 {[%clk 0:02:45]} 13. Ne4 {[%clk 0:02:16]}  a5 {[%clk 0:02:31]} 14. h3 {[%clk 0:02:12]}  Be7 {[%clk 0:02:26]} 15. Bd2 {[%clk 0:02:03]}  Nb4 {[%clk 0:02:22]} 16. Bb1 {[%clk 0:02:00]}  Nb6 {[%clk 0:02:20]} 17. g4 {[%clk 0:01:58]}  Bg6 {[%clk 0:02:19]} 18. h4 {[%clk 0:01:49]}  Bxh4 {[%clk 0:01:57]} 19. Nxh4 {[%clk 0:01:50]}  Qxh4 {[%clk 0:01:58]} 20. Bg5 {[%clk 0:01:49]}  Qh3 {[%clk 0:01:57]} 21. Ra3 {[%clk 0:01:49]}  Qxf1+ {[%clk 0:01:38]} 22. Kxf1 {[%clk 0:01:50]}  N6d5 {[%clk 0:01:28]} 23. Rh3 {[%clk 0:01:43]}  Rab8 {[%clk 0:00:58]} 24. Bd2 {[%clk 0:01:38]}  b5 {[%clk 0:00:54]} 25. axb5 {[%clk 0:01:38]}  Rxb5 {[%clk 0:00:54]} 26. f4 {[%clk 0:01:36]}  f5 {[%clk 0:00:48]} 27. Ng5 {[%clk 0:01:09]}  Nc7 {[%clk 0:00:20]} 28. gxf5 {[%clk 0:01:09]}  Bxf5 {[%clk 0:00:21]} 29. Bxf5 {[%clk 0:01:08]}  Rxf5 {[%clk 0:00:22]} 30. Kg2 {[%clk 0:00:57]}  h6 {[%clk 0:00:21]} 31. Ne4 {[%clk 0:00:55]}  Nbd5 {[%clk 0:00:20]} 32. b3 {[%clk 0:00:48]}  a4 {[%clk 0:00:19]} 33. Nd6 {[%clk 0:00:37]}  Rxb3 {[%clk 0:00:18]} 34. Nxf5 {[%clk 0:00:37]}  exf5 {[%clk 0:00:18]} 35. Rxb3 {[%clk 0:00:30]}  axb3 {[%clk 0:00:19]} 36. Qc4 {[%clk 0:00:30]}  b2 {[%clk 0:00:17]} 37. Qb3 {[%clk 0:00:30]}  Ne6 {[%clk 0:00:17]} 38. Qxb2 {[%clk 0:00:28]}  Nexf4+ {[%clk 0:00:14]} 39. Bxf4 {[%clk 0:00:29]}  Nxf4+ {[%clk 0:00:15]} 40. Kf3 {[%clk 0:00:29]}  Nd5 {[%clk 0:00:13]} 41. Qb7 {[%clk 0:00:28]}  g5 {[%clk 0:00:11]} 42. Qc8+ {[%clk 0:00:27]}  Kg7 {[%clk 0:00:10]} 43. Qxf5 {[%clk 0:00:28]}  Nf4 {[%clk 0:00:09]} 44. Qd7+ {[%clk 0:00:27]}  Kg6 {[%clk 0:00:09]} 45. Qxc6+ {[%clk 0:00:28]}  Kh5 {[%clk 0:00:10]} 46. d5 {[%clk 0:00:23]}  Ng6 {[%clk 0:00:06]} 47. Qe8 {[%clk 0:00:22]}  g4+ {[%clk 0:00:05]} 48. Kg3 {[%clk 0:00:20]}  Kg5 {[%clk 0:00:05]} 49. d6 {[%clk 0:00:20]}  h5 {[%clk 0:00:06]} 50. d7 {[%clk 0:00:21]}  h4+ {[%clk 0:00:06]} 51. Kf2 {[%clk 0:00:21]}  g3+ {[%clk 0:00:06]} 52. Kg1 {[%clk 0:00:21]}  h3 {[%clk 0:00:06]} 53. d8=Q+ {[%clk 0:00:21]}  Kh6 {[%clk 0:00:04]} 54. Qf6 {[%clk 0:00:19]}  h2+ {[%clk 0:00:04]} 55. Kg2 {[%clk 0:00:19]}  Kh7 {[%clk 0:00:02]} 56. Qexg6# {[%clk 0:00:18]} 1-0


[Site "https://www.chess.com"]

[Event "Titled Tuesday Blitz May 4 2021"]
[White "Injac, Teodora"]
[Black "Baker, Chris W"]
[WhiteFideId "932400"]
[BlackFideId "401676"]
[WhiteElo "2308"]
[BlackElo "2230"]
[Result "1-0"]
[Round "01"]
[TimeControl "180+1"]
[Date "2021.05.04"]
[WhiteClock "0:00:18"]
[BlackClock "0:00:19"]

1. d4 {[%clk 0:03:00]}  Nf6 {[%clk 0:02:58]} 2. Nf3 {[%clk 0:03:00]}  e6 {[%clk 0:02:57]} 3. c4 {[%clk 0:02:58]}  d5 {[%clk 0:02:56]} 4. Nc3 {[%clk 0:02:58]}  Bb4 {[%clk 0:02:54]} 5. Qa4+ {[%clk 0:02:46]}  Nc6 {[%clk 0:02:53]} 6. e3 {[%clk 0:02:46]}  O-O {[%clk 0:02:50]} 7. Bd2 {[%clk 0:02:45]}  dxc4 {[%clk 0:02:34]} 8. Bxc4 {[%clk 0:02:44]}  a6 {[%clk 0:02:31]} 9. O-O {[%clk 0:02:29]}  Rb8 {[%clk 0:02:22]} 10. Qc2 {[%clk 0:02:26]}  b5 {[%clk 0:02:17]} 11. Bd3 {[%clk 0:02:20]}  Bb7 {[%clk 0:02:15]} 12. a3 {[%clk 0:02:15]}  Be7 {[%clk 0:02:11]} 13. b4 {[%clk 0:02:15]}  g6 {[%clk 0:01:52]} 14. Rac1 {[%clk 0:02:04]}  Na7 {[%clk 0:01:42]} 15. Ne4 {[%clk 0:02:00]}  Nd5 {[%clk 0:01:26]} 16. Nc5 {[%clk 0:01:53]}  Bxc5 {[%clk 0:01:10]} 17. dxc5 {[%clk 0:01:51]}  Nc6 {[%clk 0:01:08]} 18. e4 {[%clk 0:01:49]}  Nf6 {[%clk 0:01:00]} 19. Bg5 {[%clk 0:01:24]}  e5 {[%clk 0:00:51]} 20. Rcd1 {[%clk 0:01:23]}  Qe7 {[%clk 0:00:50]} 21. Qc1 {[%clk 0:00:55]}  Qe6 {[%clk 0:00:50]} 22. Bb1 {[%clk 0:00:37]}  Nh5 {[%clk 0:00:49]} 23. Qc2 {[%clk 0:00:34]}  Rfe8 {[%clk 0:00:47]} 24. Ba2 {[%clk 0:00:33]}  Qg4 {[%clk 0:00:43]} 25. h3 {[%clk 0:00:31]}  Qc8 {[%clk 0:00:42]} 26. Bh6 {[%clk 0:00:28]}  Nf4 {[%clk 0:00:40]} 27. Ng5 {[%clk 0:00:23]}  Re7 {[%clk 0:00:33]} 28. Kh2 {[%clk 0:00:20]}  Nd4 {[%clk 0:00:31]} 29. Rxd4 {[%clk 0:00:20]}  exd4 {[%clk 0:00:30]} 30. c6 {[%clk 0:00:21]}  Ba8 {[%clk 0:00:29]} 31. Qc5 {[%clk 0:00:20]}  Qe8 {[%clk 0:00:27]} 32. Qxd4 {[%clk 0:00:19]}  Re5 {[%clk 0:00:19]} 33. Bxf7+ {[%clk 0:00:18]} 1-0


[Site "https://www.chess.com"]

[Event "Titled Tuesday Blitz May 4 2021"]
[White "Ioannidis, Evgenios"]
[Black "Rytenko, Vsevolod"]
[WhiteFideId "4229274"]
[BlackFideId "14133040"]
[WhiteElo "2174"]
[BlackElo "2228"]
[Result "0-1"]
[Round "01"]
[TimeControl "180+1"]
[Date "2021.05.04"]
[WhiteClock "0:00:09"]
[BlackClock "0:00:25"]

1. d4 {[%clk 0:03:00]}  d5 {[%clk 0:02:41]} 2. c4 {[%clk 0:02:59]}  c6 {[%clk 0:02:41]} 3. cxd5 {[%clk 0:02:59]}  cxd5 {[%clk 0:02:40]} 4. Bf4 {[%clk 0:03:00]}  Nc6 {[%clk 0:02:41]} 5. e3 {[%clk 0:03:00]}  Qb6 {[%clk 0:02:41]} 6. Nc3 {[%clk 0:02:57]}  e6 {[%clk 0:02:40]} 7. a3 {[%clk 0:02:36]}  a6 {[%clk 0:02:31]} 8. Bd3 {[%clk 0:02:34]}  Nf6 {[%clk 0:02:31]} 9. h3 {[%clk 0:02:28]}  Be7 {[%clk 0:02:31]} 10. Nf3 {[%clk 0:02:22]}  O-O {[%clk 0:02:31]} 11. O-O {[%clk 0:02:22]}  Bd7 {[%clk 0:02:31]} 12. b4 {[%clk 0:02:20]}  Rfc8 {[%clk 0:02:23]} 13. Na4 {[%clk 0:02:17]}  Qd8 {[%clk 0:02:23]} 14. Nc5 {[%clk 0:02:04]}  b5 {[%clk 0:02:14]} 15. Rc1 {[%clk 0:02:00]}  Be8 {[%clk 0:02:10]} 16. Qb3 {[%clk 0:01:52]}  h6 {[%clk 0:02:09]} 17. Rc3 {[%clk 0:01:49]}  Bxc5 {[%clk 0:02:07]} 18. Rxc5 {[%clk 0:01:49]}  Nb8 {[%clk 0:02:02]} 19. Rfc1 {[%clk 0:01:42]}  Rxc5 {[%clk 0:02:01]} 20. Rxc5 {[%clk 0:01:35]}  Nbd7 {[%clk 0:02:02]} 21. Rc3 {[%clk 0:01:34]}  Rc8 {[%clk 0:02:01]} 22. Qc2 {[%clk 0:01:33]}  Nb6 {[%clk 0:01:58]} 23. Bc7 {[%clk 0:01:33]}  Rxc7 {[%clk 0:01:51]} 24. Rxc7 {[%clk 0:01:34]}  Nc4 {[%clk 0:01:39]} 25. Ra7 {[%clk 0:01:03]}  Qb6 {[%clk 0:01:20]} 26. Ra8 {[%clk 0:01:03]}  g5 {[%clk 0:01:21]} 27. Ne5 {[%clk 0:00:36]}  Kg7 {[%clk 0:01:16]} 28. Bxc4 {[%clk 0:00:20]}  bxc4 {[%clk 0:01:14]} 29. f4 {[%clk 0:00:19]}  Qb7 {[%clk 0:00:58]} 30. Rd8 {[%clk 0:00:14]}  Qc7 {[%clk 0:00:54]} 31. Ra8 {[%clk 0:00:11]}  Qb7 {[%clk 0:00:52]} 32. Rxe8 {[%clk 0:00:12]}  Nxe8 {[%clk 0:00:52]} 33. fxg5 {[%clk 0:00:13]}  hxg5 {[%clk 0:00:53]} 34. Qf2 {[%clk 0:00:13]}  f6 {[%clk 0:00:48]} 35. Nf3 {[%clk 0:00:12]}  Nd6 {[%clk 0:00:45]} 36. h4 {[%clk 0:00:11]}  Ne4 {[%clk 0:00:45]} 37. Qc2 {[%clk 0:00:12]}  g4 {[%clk 0:00:41]} 38. Nd2 {[%clk 0:00:11]}  Nxd2 {[%clk 0:00:37]} 39. Qxd2 {[%clk 0:00:12]}  f5 {[%clk 0:00:38]} 40. Qc2 {[%clk 0:00:09]}  Qc7 {[%clk 0:00:35]} 41. Qc3 {[%clk 0:00:08]}  Qg3 {[%clk 0:00:34]} 42. a4 {[%clk 0:00:08]}  Qxh4 {[%clk 0:00:33]} 43. b5 {[%clk 0:00:08]}  axb5 {[%clk 0:00:34]} 44. axb5 {[%clk 0:00:08]}  g3 {[%clk 0:00:35]} 45. Kf1 {[%clk 0:00:07]}  Qh1+ {[%clk 0:00:34]} 46. Ke2 {[%clk 0:00:08]}  Qxg2+ {[%clk 0:00:35]} 47. Kd1 {[%clk 0:00:09]}  Qf1+ {[%clk 0:00:25]} 48. Qe1 {[%clk 0:00:09]}  g2 {[%clk 0:00:25]} 0-1


[Site "https://www.chess.com"]

[Event "Titled Tuesday Blitz May 4 2021"]
[White "Isajevsky, Anton"]
[Black "Zemerov, Vladimir"]
[WhiteFideId "4142500"]
[BlackFideId "4111583"]
[WhiteElo "2510"]
[BlackElo "2277"]
[Result "1-0"]
[Round "01"]
[TimeControl "180+1"]
[Date "2021.05.04"]
[WhiteClock "0:01:44"]
[BlackClock "0:02:26"]

1. c4 {[%clk 0:03:00]}  d5 {[%clk 0:03:00]} 2. cxd5 {[%clk 0:03:00]}  Qxd5 {[%clk 0:03:00]} 3. Nc3 {[%clk 0:03:00]}  Qd8 {[%clk 0:03:00]} 4. d4 {[%clk 0:02:59]}  Nf6 {[%clk 0:03:00]} 5. Nf3 {[%clk 0:02:59]}  g6 {[%clk 0:03:01]} 6. e4 {[%clk 0:02:56]}  Bg7 {[%clk 0:03:01]} 7. h3 {[%clk 0:02:56]}  O-O {[%clk 0:03:01]} 8. Be3 {[%clk 0:02:56]}  b6 {[%clk 0:03:01]} 9. Bd3 {[%clk 0:02:50]}  Bb7 {[%clk 0:03:01]} 10. O-O {[%clk 0:02:50]}  Nbd7 {[%clk 0:03:00]} 11. a4 {[%clk 0:02:36]}  a6 {[%clk 0:03:00]} 12. Qe2 {[%clk 0:02:31]}  c5 {[%clk 0:02:59]} 13. d5 {[%clk 0:02:31]}  e5 {[%clk 0:02:52]} 14. Nd2 {[%clk 0:02:27]}  a5 {[%clk 0:02:49]} 15. Bb5 {[%clk 0:02:20]}  Ne8 {[%clk 0:02:48]} 16. Nc4 {[%clk 0:02:15]}  Qe7 {[%clk 0:02:42]} 17. d6 {[%clk 0:01:54]}  Nxd6 {[%clk 0:02:41]} 18. Nxd6 {[%clk 0:01:54]}  Qxd6 {[%clk 0:02:31]} 19. Rfd1 {[%clk 0:01:52]}  Qf6 {[%clk 0:02:29]} 20. Rxd7 {[%clk 0:01:49]}  Bc6 {[%clk 0:02:29]} 21. Bxc6 {[%clk 0:01:48]}  Qxc6 {[%clk 0:02:29]} 22. Rad1 {[%clk 0:01:49]}  Rac8 {[%clk 0:02:28]} 23. R1d6 {[%clk 0:01:45]}  Qa8 {[%clk 0:02:26]} 24. Qc4 {[%clk 0:01:44]} 1-0


[Site "https://www.chess.com"]

[Event "Titled Tuesday Blitz May 4 2021"]
[White "Jain, Naveen"]
[Black "Moultino06"]
[WhiteFideId "5003970"]
[WhiteElo "2036"]
[BlackElo "2682"]
[Result "0-1"]
[Round "01"]
[TimeControl "180+1"]
[Date "2021.05.04"]
[WhiteClock "0:00:01"]
[BlackClock "0:00:04"]

1. c4 {[%clk 0:03:00]}  b6 {[%clk 0:02:58]} 2. g3 {[%clk 0:03:00]}  Bb7 {[%clk 0:02:58]} 3. Nf3 {[%clk 0:03:01]}  c5 {[%clk 0:02:57]} 4. Bg2 {[%clk 0:03:00]}  Nf6 {[%clk 0:02:55]} 5. O-O {[%clk 0:03:00]}  g6 {[%clk 0:02:55]} 6. b3 {[%clk 0:03:01]}  Bg7 {[%clk 0:02:55]} 7. Bb2 {[%clk 0:03:01]}  O-O {[%clk 0:02:55]} 8. e3 {[%clk 0:02:58]}  d5 {[%clk 0:02:51]} 9. cxd5 {[%clk 0:02:57]}  Qxd5 {[%clk 0:02:47]} 10. d4 {[%clk 0:02:53]}  cxd4 {[%clk 0:02:44]} 11. Qxd4 {[%clk 0:02:48]}  Qh5 {[%clk 0:02:26]} 12. Qd1 {[%clk 0:02:05]}  Na6 {[%clk 0:02:18]} 13. Nbd2 {[%clk 0:01:48]}  Nc5 {[%clk 0:02:06]} 14. Bd4 {[%clk 0:01:35]}  Rfd8 {[%clk 0:02:00]} 15. Ne5 {[%clk 0:01:24]}  Bxg2 {[%clk 0:01:43]} 16. Kxg2 {[%clk 0:01:25]}  Rac8 {[%clk 0:01:24]} 17. Qxh5 {[%clk 0:01:15]}  Nxh5 {[%clk 0:01:25]} 18. Ndf3 {[%clk 0:01:15]}  f6 {[%clk 0:01:10]} 19. Nc4 {[%clk 0:01:10]}  f5 {[%clk 0:00:44]} 20. Rfd1 {[%clk 0:01:03]}  Nf6 {[%clk 0:00:43]} 21. Bxc5 {[%clk 0:00:53]}  bxc5 {[%clk 0:00:44]} 22. Rxd8+ {[%clk 0:00:48]}  Rxd8 {[%clk 0:00:45]} 23. Rc1 {[%clk 0:00:48]}  Ne4 {[%clk 0:00:45]} 24. Rc2 {[%clk 0:00:40]}  Kf7 {[%clk 0:00:41]} 25. Ncd2 {[%clk 0:00:35]}  Nc3 {[%clk 0:00:36]} 26. Ng5+ {[%clk 0:00:30]}  Kg8 {[%clk 0:00:37]} 27. Ne6 {[%clk 0:00:30]}  Rd3 {[%clk 0:00:32]} 28. Nxc5 {[%clk 0:00:26]}  Rd5 {[%clk 0:00:32]} 29. Ne6 {[%clk 0:00:23]}  Bf6 {[%clk 0:00:30]} 30. Nf3 {[%clk 0:00:19]}  Ra5 {[%clk 0:00:20]} 31. a4 {[%clk 0:00:17]}  Kf7 {[%clk 0:00:07]} 32. Ned4 {[%clk 0:00:17]}  Nd5 {[%clk 0:00:06]} 33. Nb5 {[%clk 0:00:15]}  a6 {[%clk 0:00:04]} 34. Nc7 {[%clk 0:00:14]}  Nb4 {[%clk 0:00:04]} 35. Rc4 {[%clk 0:00:11]}  Nd3 {[%clk 0:00:05]} 36. Nd4 {[%clk 0:00:08]}  Nb2 {[%clk 0:00:03]} 37. Rc2 {[%clk 0:00:06]}  Bxd4 {[%clk 0:00:04]} 38. exd4 {[%clk 0:00:06]}  Nd3 {[%clk 0:00:05]} 39. b4 {[%clk 0:00:04]}  Rxa4 {[%clk 0:00:04]} 40. Rc4 {[%clk 0:00:02]}  Rxb4 {[%clk 0:00:04]} 41. Rc3 {[%clk 0:00:01]}  Rxd4 {[%clk 0:00:04]} 42. Nxa6 {[%clk 0:00:02]}  Ne5 {[%clk 0:00:03]} 43. Nc5 {[%clk 0:00:01]}  Rd2 {[%clk 0:00:04]} 0-1


[Site "https://www.chess.com"]

[Event "Titled Tuesday Blitz May 4 2021"]
[White "Jakubowska, Anna"]
[Black "Arkell, Keith C"]
[WhiteFideId "1121952"]
[BlackFideId "400270"]
[WhiteElo "2006"]
[BlackElo "2398"]
[Result "0-1"]
[Round "01"]
[TimeControl "180+1"]
[Date "2021.05.04"]
[WhiteClock "0:01:26"]
[BlackClock "0:02:25"]

1. e4 {[%clk 0:03:00]}  c6 {[%clk 0:02:59]} 2. d4 {[%clk 0:03:00]}  d5 {[%clk 0:02:59]} 3. e5 {[%clk 0:03:00]}  c5 {[%clk 0:03:00]} 4. dxc5 {[%clk 0:03:00]}  Nc6 {[%clk 0:02:59]} 5. Nf3 {[%clk 0:02:58]}  Bg4 {[%clk 0:02:59]} 6. Bb5 {[%clk 0:02:58]}  e6 {[%clk 0:02:57]} 7. O-O {[%clk 0:02:50]}  Bxc5 {[%clk 0:02:55]} 8. a3 {[%clk 0:02:50]}  Ne7 {[%clk 0:02:54]} 9. b4 {[%clk 0:02:49]}  Bb6 {[%clk 0:02:54]} 10. Bb2 {[%clk 0:02:48]}  O-O {[%clk 0:02:54]} 11. Nbd2 {[%clk 0:02:48]}  Ng6 {[%clk 0:02:54]} 12. h3 {[%clk 0:02:37]}  Bxf3 {[%clk 0:02:54]} 13. Nxf3 {[%clk 0:02:37]}  a5 {[%clk 0:02:53]} 14. Qd2 {[%clk 0:02:26]}  Qe7 {[%clk 0:02:49]} 15. Bxc6 {[%clk 0:01:56]}  bxc6 {[%clk 0:02:48]} 16. Rfe1 {[%clk 0:01:54]}  axb4 {[%clk 0:02:42]} 17. axb4 {[%clk 0:01:54]}  c5 {[%clk 0:02:42]} 18. bxc5 {[%clk 0:01:42]}  Bxc5 {[%clk 0:02:40]} 19. Bd4 {[%clk 0:01:41]}  h6 {[%clk 0:02:36]} 20. Rxa8 {[%clk 0:01:32]}  Rxa8 {[%clk 0:02:34]} 21. Rb1 {[%clk 0:01:33]}  Bxd4 {[%clk 0:02:30]} 22. Qxd4 {[%clk 0:01:30]}  Qc7 {[%clk 0:02:28]} 23. Rb2 {[%clk 0:01:26]}  f6 {[%clk 0:02:25]} 24. exf6 {[%clk 0:01:26]}  Ra1+ {[%clk 0:02:25]} 0-1


[Site "https://www.chess.com"]

[Event "Titled Tuesday Blitz May 4 2021"]
[White "Jaskolka, Tomasz"]
[Black "Mikhalevski, Victor"]
[WhiteFideId "1170791"]
[BlackFideId "2801914"]
[WhiteElo "2050"]
[BlackElo "2567"]
[Result "0-1"]
[Round "01"]
[TimeControl "180+1"]
[Date "2021.05.04"]
[WhiteClock "0:00:03"]
[BlackClock "0:00:18"]

1. d4 {[%clk 0:02:58]}  Nf6 {[%clk 0:02:59]} 2. Bf4 {[%clk 0:02:57]}  d5 {[%clk 0:02:57]} 3. e3 {[%clk 0:02:56]}  Bg4 {[%clk 0:02:58]} 4. Nf3 {[%clk 0:02:56]}  e6 {[%clk 0:02:57]} 5. c3 {[%clk 0:02:55]}  Bd6 {[%clk 0:02:55]} 6. Bg3 {[%clk 0:02:52]}  O-O {[%clk 0:02:52]} 7. Nbd2 {[%clk 0:02:51]}  c5 {[%clk 0:02:48]} 8. Be2 {[%clk 0:02:48]}  Nc6 {[%clk 0:02:48]} 9. Ne5 {[%clk 0:02:45]}  Bxe2 {[%clk 0:02:46]} 10. Qxe2 {[%clk 0:02:46]}  Bxe5 {[%clk 0:02:42]} 11. dxe5 {[%clk 0:02:44]}  Nd7 {[%clk 0:02:42]} 12. Nf3 {[%clk 0:02:41]}  Qc7 {[%clk 0:02:34]} 13. e4 {[%clk 0:02:16]}  d4 {[%clk 0:02:29]} 14. cxd4 {[%clk 0:02:08]}  Nxd4 {[%clk 0:02:29]} 15. Nxd4 {[%clk 0:02:07]}  cxd4 {[%clk 0:02:30]} 16. O-O {[%clk 0:02:05]}  Nxe5 {[%clk 0:02:23]} 17. Qb5 {[%clk 0:01:51]}  f6 {[%clk 0:02:21]} 18. Rac1 {[%clk 0:01:49]}  Qd6 {[%clk 0:02:16]} 19. Rfd1 {[%clk 0:01:14]}  Rab8 {[%clk 0:01:52]} 20. Qa4 {[%clk 0:00:53]}  Rfd8 {[%clk 0:01:48]} 21. Qxa7 {[%clk 0:00:49]}  d3 {[%clk 0:01:44]} 22. Rc3 {[%clk 0:00:46]}  d2 {[%clk 0:01:43]} 23. Rc2 {[%clk 0:00:40]}  Rbc8 {[%clk 0:01:33]} 24. Qa4 {[%clk 0:00:24]}  Qd3 {[%clk 0:01:26]} 25. Rxc8 {[%clk 0:00:16]}  Rxc8 {[%clk 0:01:25]} 26. Bf4 {[%clk 0:00:12]}  g5 {[%clk 0:01:05]} 27. Bxe5 {[%clk 0:00:11]}  fxe5 {[%clk 0:01:01]} 28. h3 {[%clk 0:00:09]}  Kf7 {[%clk 0:00:55]} 29. Kh2 {[%clk 0:00:08]}  Rc1 {[%clk 0:00:52]} 30. Qa5 {[%clk 0:00:01]}  Rxd1 {[%clk 0:00:50]} 31. Qc7+ {[%clk 0:00:01]}  Kf6 {[%clk 0:00:45]} 32. Qxh7 {[%clk 0:00:01]}  Rh1+ {[%clk 0:00:42]} 33. Kxh1 {[%clk 0:00:02]}  d1=Q+ {[%clk 0:00:42]} 34. Kh2 {[%clk 0:00:03]}  Qd7 {[%clk 0:00:36]} 35. Qh6+ {[%clk 0:00:03]}  Ke7 {[%clk 0:00:36]} 36. Qxg5+ {[%clk 0:00:03]}  Kd6 {[%clk 0:00:36]} 37. Qe3 {[%clk 0:00:03]}  Qc6 {[%clk 0:00:29]} 38. Qa3+ {[%clk 0:00:03]}  Qc5 {[%clk 0:00:28]} 39. Qa8 {[%clk 0:00:03]}  Kc7 {[%clk 0:00:27]} 40. Qe8 {[%clk 0:00:03]}  Qd7 {[%clk 0:00:22]} 41. Qh5 {[%clk 0:00:03]}  Qg7 {[%clk 0:00:19]} 42. f3 {[%clk 0:00:03]}  Qf2 {[%clk 0:00:18]} 0-1


[Site "https://www.chess.com"]